[Event "*** Titled Tuesday 3|2 Blitz"]
[Site "Chess.com"]
[Date "2017.05.02"]
[Round "3"]
[White "underdogchss"]
[Black "jcibarra"]
[Result "0-1"]
[WhiteElo "2399"]
[BlackElo "2655"]
[TimeControl "180+2"]
[EndTime "13:35:57 PDT"]
[Termination "jcibarra won by resignation"]

1. d4 {[%clk 0:03:02]} 1... Nf6 {[%clk 0:02:58.9]} 2. Nf3 {[%clk 0:02:59.4]}
2... g6 {[%clk 0:02:59.2]} 3. c3 {[%clk 0:02:59.9]} 3... d6 {[%clk 0:03:00.2]}
4. h3 {[%clk 0:03:00.5]} 4... Bg7 {[%clk 0:03:01.7]} 5. Bf4 {[%clk 0:03:00.4]}
5... O-O {[%clk 0:03:03.2]} 6. Nbd2 {[%clk 0:03:01.3]} 6... c5 {[%clk
0:03:04.8]} 7. e3 {[%clk 0:03:02.4]} 7... Be6 {[%clk 0:03:05.6]} 8. Be2 {[%clk
0:03:03]} 8... Qb6 {[%clk 0:03:06.2]} 9. Qc2 {[%clk 0:02:55.2]} 9... Nc6 {[%clk
0:03:05.6]} 10. dxc5 {[%clk 0:02:50.1]} 10... Qxc5 {[%clk 0:03:06.2]} 11. Nd4
{[%clk 0:02:38.1]} 11... Bd7 {[%clk 0:02:59.5]} 12. Bg3 {[%clk 0:02:24.8]} 12...
Rac8 {[%clk 0:02:55.8]} 13. N2b3 {[%clk 0:02:11.3]} 13... Qb6 {[%clk 0:02:53.4]}
14. Nxc6 {[%clk 0:02:08.3]} 14... bxc6 {[%clk 0:02:51.3]} 15. O-O {[%clk
0:02:04.4]} 15... c5 {[%clk 0:02:47.8]} 16. Nd2 {[%clk 0:02:04.3]} 16... d5
{[%clk 0:02:21.6]} 17. c4 {[%clk 0:01:57.5]} 17... Bf5 {[%clk 0:02:19.3]} 18.
Qb3 {[%clk 0:01:56.2]} 18... d4 {[%clk 0:02:19.9]} 19. Qxb6 {[%clk 0:01:52.8]}
19... axb6 {[%clk 0:02:21.8]} 20. exd4 {[%clk 0:01:53.5]} 20... cxd4 {[%clk
0:02:22.8]} 21. Rfe1 {[%clk 0:01:49.8]} 21... Nd7 {[%clk 0:02:16.3]} 22. Bf3
{[%clk 0:01:09.3]} 22... e5 {[%clk 0:02:16.1]} 23. Bd5 {[%clk 0:01:06.2]} 23...
Rfe8 {[%clk 0:02:12.1]} 24. Ne4 {[%clk 0:01:01.6]} 24... Bxe4 {[%clk 0:02:12.9]}
25. Rxe4 {[%clk 0:00:57.5]} 25... Nc5 {[%clk 0:01:58.7]} 26. Re2 {[%clk
0:00:53.3]} 26... d3 {[%clk 0:01:30.4]} 27. Rd2 {[%clk 0:00:41.6]} 27... Bh6
{[%clk 0:01:23.5]} 28. Rdd1 {[%clk 0:00:42.3]} 28... e4 {[%clk 0:01:21]} 29. Re1
{[%clk 0:00:23.3]} 29... Na4 {[%clk 0:01:07.9]} 30. Rab1 {[%clk 0:00:21.1]}
30... Bg7 {[%clk 0:00:56]} 31. Rxe4 {[%clk 0:00:19.2]} 31... Nxb2 {[%clk
0:00:51]} 32. Rxe8+ {[%clk 0:00:10.8]} 32... Rxe8 {[%clk 0:00:51.2]} 33. Bf4
{[%clk 0:00:11.8]} 33... Bc3 {[%clk 0:00:45.7]} 34. g4 {[%clk 0:00:10.1]} 34...
Re2 {[%clk 0:00:32.3]} 35. Kf1 {[%clk 0:00:10.6]} 35... Bd4 {[%clk 0:00:31.4]}
36. Be3 {[%clk 0:00:06.9]} 36... Bxe3 {[%clk 0:00:17.8]} 37. fxe3 {[%clk
0:00:08.8]} 37... Rc2 {[%clk 0:00:14.6]} 38. Be4 {[%clk 0:00:09.6]} 38... Rd2
{[%clk 0:00:07.9]} 39. Rxb2 {[%clk 0:00:08.7]} 39... Rxb2 {[%clk 0:00:08.8]} 40.
Bxd3 {[%clk 0:00:09.9]} 40... Rxa2 {[%clk 0:00:10.3]} 41. Be2 {[%clk 0:00:11.1]}
41... Kf8 {[%clk 0:00:11.5]} 42. Kf2 {[%clk 0:00:12]} 42... Ke7 {[%clk 0:00:13]}
43. Kf3 {[%clk 0:00:13.6]} 43... Kd6 {[%clk 0:00:14.6]} 44. Bd3 {[%clk
0:00:14.8]} 44... Ra3 {[%clk 0:00:15.5]} 45. Ke4 {[%clk 0:00:15.5]} 45... Kc5
{[%clk 0:00:14.8]} 46. g5 {[%clk 0:00:16.1]} 46... Rc3 {[%clk 0:00:14]} 47. Bf1
{[%clk 0:00:15.4]} 47... Rxc4+ {[%clk 0:00:14]} 48. Ke5 {[%clk 0:00:16.1]} 48...
Rc3 {[%clk 0:00:14.8]} 49. e4 {[%clk 0:00:17]} 49... Rf3 {[%clk 0:00:15.6]} 50.
Be2 {[%clk 0:00:17.4]} 50... Rf2 {[%clk 0:00:16.9]} 51. Ba6 {[%clk 0:00:17.6]}
51... b5 {[%clk 0:00:18.2]} 52. h4 {[%clk 0:00:18.5]} 52... b4 {[%clk
0:00:19.6]} 53. Bd3 {[%clk 0:00:18.8]} 53... b3 {[%clk 0:00:20.8]} 54. h5 {[%clk
0:00:20]} 54... gxh5 {[%clk 0:00:21.6]} 55. Bb1 {[%clk 0:00:19.6]} 55... b2
{[%clk 0:00:21.2]} 56. Ba2 {[%clk 0:00:20.1]} 56... h4 {[%clk 0:00:22.2]} 57. g6
{[%clk 0:00:21.4]} 57... fxg6 {[%clk 0:00:22.6]} 58. Bb1 {[%clk 0:00:20.1]}
58... Rf1 {[%clk 0:00:23.6]} 59. Bd3 {[%clk 0:00:21]} 59... b1=Q {[%clk
0:00:25.5]} 60. Bxf1 {[%clk 0:00:20.8]} 60... Qxf1 {[%clk 0:00:25.3]} 0-1

[Event "*** Titled Tuesday 3|2 Blitz"]
[Site "Chess.com"]
[Date "2017.05.02"]
[Round "3"]
[White "oskariot"]
[Black "LawrenceTrent"]
[Result "1/2-1/2"]
[WhiteElo "2442"]
[BlackElo "2430"]
[TimeControl "180+2"]
[EndTime "13:35:58 PDT"]
[Termination "Game drawn by agreement"]

1. e4 {[%clk 0:02:59.2]} 1... e5 {[%clk 0:03:00.7]} 2. Nf3 {[%clk 0:03:00.1]}
2... Nc6 {[%clk 0:03:01.7]} 3. Bb5 {[%clk 0:03:01.5]} 3... a6 {[%clk 0:03:02.9]}
4. Ba4 {[%clk 0:03:02.7]} 4... Nge7 {[%clk 0:03:04.1]} 5. O-O {[%clk 0:03:02.3]}
5... g6 {[%clk 0:03:05.3]} 6. c3 {[%clk 0:03:03.8]} 6... Bg7 {[%clk 0:03:06]} 7.
d4 {[%clk 0:03:05.1]} 7... exd4 {[%clk 0:03:07.1]} 8. cxd4 {[%clk 0:03:06.5]}
8... b5 {[%clk 0:03:08.5]} 9. Bb3 {[%clk 0:03:03.4]} 9... d6 {[%clk 0:03:09.7]}
10. d5 {[%clk 0:03:02.4]} 10... Na5 {[%clk 0:03:01.8]} 11. Bd2 {[%clk
0:03:03.2]} 11... c5 {[%clk 0:03:03]} 12. dxc6 {[%clk 0:02:55.5]} 12... Nexc6
{[%clk 0:02:56.9]} 13. Bc3 {[%clk 0:02:50.7]} 13... O-O {[%clk 0:02:50.7]} 14.
Bxg7 {[%clk 0:02:49.4]} 14... Kxg7 {[%clk 0:02:51.7]} 15. Nc3 {[%clk 0:02:48.4]}
15... Bg4 {[%clk 0:02:49.2]} 16. h3 {[%clk 0:02:46.9]} 16... Bxf3 {[%clk
0:02:50.4]} 17. Qxf3 {[%clk 0:02:47.8]} 17... Qf6 {[%clk 0:02:20.6]} 18. Qxf6+
{[%clk 0:02:11.8]} 18... Kxf6 {[%clk 0:02:21.2]} 19. Nd5+ {[%clk 0:02:12.9]}
19... Kg7 {[%clk 0:02:20.2]} 20. Rfd1 {[%clk 0:02:04.2]} 20... Rfd8 {[%clk
0:02:18]} 21. Rac1 {[%clk 0:01:55.9]} 21... Rac8 {[%clk 0:02:07.2]} 22. Nb6
{[%clk 0:01:31.9]} 22... Rb8 {[%clk 0:02:08.2]} 23. Nd5 {[%clk 0:01:32.6]} 23...
Rbc8 {[%clk 0:01:58.4]} 24. Rc3 {[%clk 0:01:26.3]} 24... Nxb3 {[%clk 0:01:51.2]}
25. Rxb3 {[%clk 0:01:19.9]} 25... Ne5 {[%clk 0:01:52.3]} 26. Rc3 {[%clk
0:01:19.2]} 26... Kf8 {[%clk 0:01:28.4]} 27. f4 {[%clk 0:01:12.5]} 27... Rxc3
{[%clk 0:01:28.5]} 28. Nxc3 {[%clk 0:01:12.8]} 28... Nc4 {[%clk 0:01:24.3]} 29.
b3 {[%clk 0:01:09.7]} 29... Nb6 {[%clk 0:01:25.4]} 30. Kf2 {[%clk 0:01:00.2]}
30... Ke7 {[%clk 0:01:24.1]} 31. Rc1 {[%clk 0:00:48.1]} 31... Kd7 {[%clk
0:01:18]} 32. Nd5 {[%clk 0:00:44.2]} 32... Nxd5 {[%clk 0:01:08.1]} 33. exd5
{[%clk 0:00:46.1]} 33... Rc8 {[%clk 0:01:03.4]} 34. Rxc8 {[%clk 0:00:47.2]}
34... Kxc8 {[%clk 0:01:05.2]} 35. b4 {[%clk 0:00:35.1]} 35... Kd7 {[%clk
0:01:03]} 36. Kf3 {[%clk 0:00:34]} 36... f5 {[%clk 0:00:54.3]} 37. g3 {[%clk
0:00:21.6]} 37... Ke7 {[%clk 0:00:55.2]} 38. g4 {[%clk 0:00:15.7]} 38... fxg4+
{[%clk 0:00:38.3]} 39. hxg4 {[%clk 0:00:14.7]} 39... Kf6 {[%clk 0:00:39.5]} 40.
Ke4 {[%clk 0:00:12.3]} 40... h5 {[%clk 0:00:32.9]} 41. g5+ {[%clk 0:00:12.6]}
41... Kf7 {[%clk 0:00:23.8]} 42. Kf3 {[%clk 0:00:13.5]} 42... Kg7 {[%clk
0:00:23.5]} 43. Kg3 {[%clk 0:00:14.9]} 43... Kf7 {[%clk 0:00:24.6]} 44. Kh3
{[%clk 0:00:16.8]} 44... Kg7 {[%clk 0:00:25.8]} 45. Kg2 {[%clk 0:00:18.7]} 45...
Kf7 {[%clk 0:00:27.2]} 46. Kh2 {[%clk 0:00:20.6]} 46... Kg7 {[%clk 0:00:28.6]}
47. Kg3 {[%clk 0:00:22.5]} 47... Kf7 {[%clk 0:00:29.9]} 48. Kh4 {[%clk
0:00:24.4]} 48... Kg7 {[%clk 0:00:31.3]} 49. Kg3 {[%clk 0:00:16.6]} 49... Kf7
{[%clk 0:00:32.3]} 50. Kf2 {[%clk 0:00:18.1]} 50... Ke7 {[%clk 0:00:33.5]} 51.
Ke1 {[%clk 0:00:19.6]} 51... Kf7 {[%clk 0:00:34.6]} 52. Kd2 {[%clk 0:00:20.3]}
52... Ke7 {[%clk 0:00:35.6]} 53. Ke3 {[%clk 0:00:21.7]} 53... Kf7 {[%clk
0:00:37]} 54. Kf3 {[%clk 0:00:23.1]} 54... Ke7 {[%clk 0:00:37.8]} 55. Kg2 {[%clk
0:00:25]} 55... Kf7 {[%clk 0:00:39]} 56. Kh3 {[%clk 0:00:26.9]} 56... Kg7 {[%clk
0:00:40.1]} 57. Kh4 {[%clk 0:00:28.8]} 57... Kf7 {[%clk 0:00:41.3]} 58. Kg3
{[%clk 0:00:21.5]} 58... Kg7 {[%clk 0:00:42.4]} 59. Kh3 {[%clk 0:00:22.6]} 59...
Kf7 {[%clk 0:00:43.8]} 60. Kh4 {[%clk 0:00:24]} 60... Kg7 {[%clk 0:00:45.1]} 61.
Kh3 {[%clk 0:00:20.8]} 1/2-1/2

[Event "*** Titled Tuesday 3|2 Blitz"]
[Site "Chess.com"]
[Date "2017.05.02"]
[Round "3"]
[White "Vegan4future"]
[Black "supertfc"]
[Result "0-1"]
[WhiteElo "2291"]
[BlackElo "2357"]
[TimeControl "180+2"]
[EndTime "13:36:01 PDT"]
[Termination "supertfc won by checkmate"]

1. e4 {[%clk 0:03:02]} 1... e5 {[%clk 0:03:00.5]} 2. Nf3 {[%clk 0:03:03.4]} 2...
Nc6 {[%clk 0:03:01.8]} 3. Bc4 {[%clk 0:03:04.3]} 3... Nf6 {[%clk 0:03:02.4]} 4.
d3 {[%clk 0:03:04.9]} 4... Be7 {[%clk 0:03:02.5]} 5. O-O {[%clk 0:03:06.3]} 5...
O-O {[%clk 0:03:02.9]} 6. Re1 {[%clk 0:03:03.9]} 6... d6 {[%clk 0:03:00.8]} 7.
h3 {[%clk 0:03:05.1]} 7... Na5 {[%clk 0:02:57.3]} 8. Bb3 {[%clk 0:03:06.1]} 8...
Nxb3 {[%clk 0:02:55.9]} 9. axb3 {[%clk 0:03:08]} 9... h6 {[%clk 0:02:51.3]} 10.
b4 {[%clk 0:03:01.2]} 10... c6 {[%clk 0:02:41.6]} 11. Be3 {[%clk 0:02:58.5]}
11... Be6 {[%clk 0:02:37.8]} 12. c4 {[%clk 0:02:47.9]} 12... a5 {[%clk 0:02:31]}
13. bxa5 {[%clk 0:02:48.5]} 13... Rxa5 {[%clk 0:02:32.9]} 14. Nc3 {[%clk
0:02:49.3]} 14... Qa8 {[%clk 0:02:20.3]} 15. Bb6 {[%clk 0:02:41.2]} 15... Rxa1
{[%clk 0:02:18.7]} 16. Qxa1 {[%clk 0:02:43.1]} 16... Nd7 {[%clk 0:02:18.6]} 17.
Be3 {[%clk 0:02:42.8]} 17... Qb8 {[%clk 0:02:06.5]} 18. b4 {[%clk 0:02:36.9]}
18... f5 {[%clk 0:01:57.1]} 19. exf5 {[%clk 0:02:18.2]} 19... Bxf5 {[%clk
0:01:59]} 20. d4 {[%clk 0:02:19.5]} 20... e4 {[%clk 0:01:49.2]} 21. Nd2 {[%clk
0:02:20.2]} 21... Nf6 {[%clk 0:01:48]} 22. d5 {[%clk 0:02:13.4]} 22... Qc8
{[%clk 0:01:39.8]} 23. Qa7 {[%clk 0:02:08.6]} 23... cxd5 {[%clk 0:01:22.9]} 24.
Nxd5 {[%clk 0:02:07.8]} 24... Nxd5 {[%clk 0:01:23.4]} 25. cxd5 {[%clk
0:02:09.7]} 25... Bf6 {[%clk 0:01:03.6]} 26. Nf1 {[%clk 0:01:42.3]} 26... Be5
{[%clk 0:01:00.8]} 27. Rc1 {[%clk 0:01:43.1]} 27... Qd7 {[%clk 0:00:59.8]} 28.
Qb6 {[%clk 0:01:41.9]} 28... Bxh3 {[%clk 0:00:49.7]} 29. gxh3 {[%clk 0:01:39.6]}
29... Qxh3 {[%clk 0:00:51.6]} 30. Qxb7 {[%clk 0:01:08.1]} 30... Qg4+ {[%clk
0:00:39.5]} 31. Kh1 {[%clk 0:01:08.5]} 31... Rf5 {[%clk 0:00:31.6]} 32. Qc8+
{[%clk 0:01:00.6]} 32... Kh7 {[%clk 0:00:32.1]} 33. Qxf5+ {[%clk 0:00:56.9]}
33... Qxf5 {[%clk 0:00:34]} 34. b5 {[%clk 0:00:58.4]} 34... Qf3+ {[%clk
0:00:21]} 35. Kg1 {[%clk 0:00:59.1]} 35... h5 {[%clk 0:00:19.6]} 36. Nh2 {[%clk
0:00:44.9]} 36... Bxh2+ {[%clk 0:00:17.9]} 37. Kxh2 {[%clk 0:00:46.8]} 37... Qf5
{[%clk 0:00:14.4]} 38. b6 {[%clk 0:00:46.5]} 38... Qe5+ {[%clk 0:00:12.7]} 39.
Kg1 {[%clk 0:00:45.9]} 39... Qxd5 {[%clk 0:00:12.1]} 40. Rb1 {[%clk 0:00:46.6]}
40... Qb7 {[%clk 0:00:12.4]} 41. Kg2 {[%clk 0:00:46]} 41... Kg6 {[%clk
0:00:07.6]} 42. Kg3 {[%clk 0:00:47]} 42... Kf5 {[%clk 0:00:07.6]} 43. Rb5+
{[%clk 0:00:47.9]} 43... d5 {[%clk 0:00:05.5]} 44. Rb1 {[%clk 0:00:46.1]} 44...
g5 {[%clk 0:00:06.1]} 45. Kg2 {[%clk 0:00:46]} 45... h4 {[%clk 0:00:06.2]} 46.
Rc1 {[%clk 0:00:46.5]} 46... Ke5 {[%clk 0:00:03.9]} 47. Rc7 {[%clk 0:00:47.1]}
47... Qb8 {[%clk 0:00:05.2]} 48. Re7+ {[%clk 0:00:46.6]} 48... Kf6 {[%clk
0:00:05.5]} 49. Rd7 {[%clk 0:00:45.9]} 49... Ke6 {[%clk 0:00:06.3]} 50. Rg7
{[%clk 0:00:46.4]} 50... Kf6 {[%clk 0:00:04.3]} 51. Ra7 {[%clk 0:00:41]} 51...
g4 {[%clk 0:00:04.5]} 52. Rh7 {[%clk 0:00:36.7]} 52... h3+ {[%clk 0:00:05.6]}
53. Kf1 {[%clk 0:00:37]} 53... Kg6 {[%clk 0:00:06.7]} 54. Rh6+ {[%clk
0:00:37.4]} 54... Kg7 {[%clk 0:00:07.4]} 55. Rh4 {[%clk 0:00:37.4]} 55... Qc8
{[%clk 0:00:08.2]} 56. Ke2 {[%clk 0:00:35]} 56... Qc4+ {[%clk 0:00:07]} 57. Ke1
{[%clk 0:00:35.8]} 57... Qb4+ {[%clk 0:00:07.1]} 58. Ke2 {[%clk 0:00:36.7]}
58... d4 {[%clk 0:00:07.6]} 59. Rxg4+ {[%clk 0:00:38.1]} 59... Kf7 {[%clk
0:00:08.5]} 60. Rf4+ {[%clk 0:00:38.5]} 60... Kg6 {[%clk 0:00:09.3]} 61. Rg4+
{[%clk 0:00:39.5]} 61... Kf5 {[%clk 0:00:08.8]} 62. Rf4+ {[%clk 0:00:40.6]}
62... Ke5 {[%clk 0:00:10.3]} 63. Bd2 {[%clk 0:00:40.7]} 63... Qb5+ {[%clk
0:00:10.8]} 64. Ke1 {[%clk 0:00:41.8]} 64... Qb1+ {[%clk 0:00:09.2]} 65. Ke2
{[%clk 0:00:42.4]} 65... d3+ {[%clk 0:00:10.6]} 66. Ke3 {[%clk 0:00:43.2]} 66...
Qxb6# {[%clk 0:00:12.1]} 0-1

[Event "*** Titled Tuesday 3|2 Blitz"]
[Site "Chess.com"]
[Date "2017.05.02"]
[Round "3"]
[White "Vrolijk"]
[Black "Ilja_Semjonovs"]
[Result "1/2-1/2"]
[WhiteElo "2313"]
[BlackElo "2238"]
[TimeControl "180+2"]
[EndTime "13:36:48 PDT"]
[Termination "Game drawn by repetition"]

1. d4 {[%clk 0:03:02]} 1... Nf6 {[%clk 0:03:00.8]} 2. c4 {[%clk 0:03:01.5]} 2...
c5 {[%clk 0:03:01.6]} 3. d5 {[%clk 0:03:01.2]} 3... b5 {[%clk 0:03:02.6]} 4.
cxb5 {[%clk 0:02:59.7]} 4... a6 {[%clk 0:03:04]} 5. bxa6 {[%clk 0:02:59.8]} 5...
g6 {[%clk 0:03:05.3]} 6. Nc3 {[%clk 0:02:59.6]} 6... Bg7 {[%clk 0:03:06.4]} 7.
a7 {[%clk 0:03:01.2]} 7... Rxa7 {[%clk 0:03:05.5]} 8. e4 {[%clk 0:03:02.8]} 8...
O-O {[%clk 0:03:02.5]} 9. Nf3 {[%clk 0:02:59.5]} 9... d6 {[%clk 0:03:02.9]} 10.
Be2 {[%clk 0:02:50.2]} 10... Ba6 {[%clk 0:02:58.4]} 11. O-O {[%clk 0:02:46.9]}
11... Bxe2 {[%clk 0:02:58.7]} 12. Qxe2 {[%clk 0:02:48.8]} 12... Na6 {[%clk
0:02:58.4]} 13. a4 {[%clk 0:02:42.2]} 13... Nb4 {[%clk 0:02:53.8]} 14. Bd2
{[%clk 0:02:40]} 14... Qa8 {[%clk 0:02:42.3]} 15. b3 {[%clk 0:02:26.3]} 15...
Na6 {[%clk 0:02:16.9]} 16. Nb5 {[%clk 0:02:24.3]} 16... Rb7 {[%clk 0:02:17.5]}
17. Bc3 {[%clk 0:02:19.5]} 17... Nc7 {[%clk 0:02:15.8]} 18. Nxc7 {[%clk
0:02:13.1]} 18... Rxc7 {[%clk 0:02:16.7]} 19. Nd2 {[%clk 0:02:13.5]} 19... Rb8
{[%clk 0:02:07.8]} 20. Rab1 {[%clk 0:02:13.5]} 20... e6 {[%clk 0:01:52.3]} 21.
dxe6 {[%clk 0:01:54.9]} 21... fxe6 {[%clk 0:01:53.2]} 22. Nc4 {[%clk 0:01:51.1]}
22... Qxe4 {[%clk 0:01:47.9]} 23. Qd2 {[%clk 0:01:15.3]} 23... Rd7 {[%clk
0:01:21.4]} 24. Rfe1 {[%clk 0:01:10.8]} 24... Qd5 {[%clk 0:01:01.3]} 25. Qe2
{[%clk 0:01:10.4]} 25... e5 {[%clk 0:00:59.8]} 26. a5 {[%clk 0:01:08]} 26... Qc6
{[%clk 0:00:45.6]} 27. Red1 {[%clk 0:01:05.2]} 27... Ne4 {[%clk 0:00:34.7]} 28.
Be1 {[%clk 0:01:00.4]} 28... d5 {[%clk 0:00:33.5]} 29. Nb6 {[%clk 0:00:58.6]}
29... Rdd8 {[%clk 0:00:32.1]} 30. Nxd5 {[%clk 0:00:36.6]} 30... Rxd5 {[%clk
0:00:31]} 31. Qxe4 {[%clk 0:00:36.5]} 31... Rxd1 {[%clk 0:00:31.9]} 32. Qxc6
{[%clk 0:00:38.4]} 32... Rxb1 {[%clk 0:00:32.8]} 33. Kf1 {[%clk 0:00:37.7]}
33... e4 {[%clk 0:00:26.8]} 34. Qxe4 {[%clk 0:00:36.3]} 34... R1xb3 {[%clk
0:00:25]} 35. Qc4+ {[%clk 0:00:25.6]} 35... Kh8 {[%clk 0:00:23.4]} 36. Qxc5
{[%clk 0:00:27]} 36... Rb1 {[%clk 0:00:21.6]} 37. Qc2 {[%clk 0:00:20.1]} 37...
Ra1 {[%clk 0:00:19.9]} 38. g3 {[%clk 0:00:15.9]} 38... Re8 {[%clk 0:00:18.8]}
39. Kg2 {[%clk 0:00:15.5]} 39... Raxe1 {[%clk 0:00:18.1]} 40. Qc6 {[%clk
0:00:16.7]} 40... Rf8 {[%clk 0:00:16.4]} 41. a6 {[%clk 0:00:13.5]} 41... Re7
{[%clk 0:00:16.2]} 42. Qc5 {[%clk 0:00:12.6]} 42... Ree8 {[%clk 0:00:16.3]} 43.
f4 {[%clk 0:00:14]} 43... Ra8 {[%clk 0:00:15]} 44. Qc6 {[%clk 0:00:15]} 44...
Ra7 {[%clk 0:00:13.1]} 45. Qb6 {[%clk 0:00:16.3]} 45... Rfa8 {[%clk 0:00:13.9]}
46. h4 {[%clk 0:00:16.3]} 46... Rxa6 {[%clk 0:00:14.9]} 47. Qb7 {[%clk
0:00:17.9]} 47... R6a7 {[%clk 0:00:15.8]} 48. Qc6 {[%clk 0:00:18.5]} 48... Rb8
{[%clk 0:00:15.1]} 49. Kh3 {[%clk 0:00:19.1]} 49... Re7 {[%clk 0:00:14.8]} 50.
Qd6 {[%clk 0:00:19.9]} 50... Rbe8 {[%clk 0:00:15]} 51. Qd5 {[%clk 0:00:21.2]}
51... Re3 {[%clk 0:00:11.8]} 52. h5 {[%clk 0:00:21.8]} 52... gxh5 {[%clk
0:00:09.4]} 53. Qxh5 {[%clk 0:00:22.5]} 53... Rg8 {[%clk 0:00:10.4]} 54. Qc5
{[%clk 0:00:18]} 54... Rc3 {[%clk 0:00:10.8]} 55. Qd6 {[%clk 0:00:16.5]} 55...
Rxg3+ {[%clk 0:00:10.1]} 56. Kh4 {[%clk 0:00:14.4]} 56... Rg6 {[%clk 0:00:11]}
57. Qd5 {[%clk 0:00:15.2]} 57... Bf6+ {[%clk 0:00:08.8]} 58. Kh5 {[%clk
0:00:15.3]} 58... Bg7 {[%clk 0:00:07.8]} 59. Qf7 {[%clk 0:00:14.1]} 59... Rf6
{[%clk 0:00:06.6]} 60. Qc4 {[%clk 0:00:15.1]} 60... Rg6 {[%clk 0:00:06.5]} 61.
Qf7 {[%clk 0:00:15.5]} 61... Rg1 {[%clk 0:00:06.8]} 62. Qa7 {[%clk 0:00:10.5]}
62... Rg6 {[%clk 0:00:06.1]} 63. Qf7 {[%clk 0:00:10.9]} 63... Rf6 {[%clk
0:00:07.2]} 64. Qc4 {[%clk 0:00:10.9]} 64... Rg6 {[%clk 0:00:07.5]} 65. Qf7
{[%clk 0:00:12.1]} 1/2-1/2

[Event "*** Titled Tuesday 3|2 Blitz"]
[Site "Chess.com"]
[Date "2017.05.02"]
[Round "3"]
[White "SerGo055"]
[Black "chessdude"]
[Result "1-0"]
[WhiteElo "2390"]
[BlackElo "2421"]
[TimeControl "180+2"]
[EndTime "13:37:13 PDT"]
[Termination "SerGo055 won by resignation"]

1. d4 {[%clk 0:03:02]} 1... Nf6 {[%clk 0:03:00.7]} 2. Nf3 {[%clk 0:03:02.9]}
2... e6 {[%clk 0:03:01.6]} 3. c4 {[%clk 0:03:04]} 3... b6 {[%clk 0:03:02.8]} 4.
g3 {[%clk 0:03:01.5]} 4... Ba6 {[%clk 0:03:03.7]} 5. Nbd2 {[%clk 0:03:01.8]}
5... Bb4 {[%clk 0:03:02.6]} 6. Qc2 {[%clk 0:03:00.3]} 6... O-O {[%clk
0:03:02.3]} 7. Bg2 {[%clk 0:03:01]} 7... d5 {[%clk 0:03:03.2]} 8. O-O {[%clk
0:02:59.6]} 8... Bb7 {[%clk 0:02:52.9]} 9. Ne5 {[%clk 0:02:59.2]} 9... Bd6
{[%clk 0:02:44.6]} 10. Ndf3 {[%clk 0:02:58.6]} 10... Nbd7 {[%clk 0:02:39.1]} 11.
Bf4 {[%clk 0:02:58.2]} 11... Rc8 {[%clk 0:02:33.5]} 12. Rfd1 {[%clk 0:02:15.2]}
12... dxc4 {[%clk 0:02:26]} 13. Qxc4 {[%clk 0:02:10.7]} 13... Bd5 {[%clk
0:02:26.8]} 14. Qa4 {[%clk 0:02:09.9]} 14... Qe8 {[%clk 0:02:13.1]} 15. Nd3
{[%clk 0:01:45.1]} 15... Bxf4 {[%clk 0:02:04.7]} 16. Nxf4 {[%clk 0:01:45.3]}
16... a5 {[%clk 0:01:58.4]} 17. Nxd5 {[%clk 0:01:44.5]} 17... exd5 {[%clk
0:02:00.3]} 18. e3 {[%clk 0:01:43.1]} 18... Ne4 {[%clk 0:01:56.4]} 19. Rac1
{[%clk 0:01:42]} 19... Ndf6 {[%clk 0:01:51.1]} 20. Qxe8 {[%clk 0:01:40.8]} 20...
Rfxe8 {[%clk 0:01:53]} 21. Rc6 {[%clk 0:01:41.3]} 21... Red8 {[%clk 0:01:18]}
22. Rdc1 {[%clk 0:01:40.3]} 22... Ne8 {[%clk 0:01:18.9]} 23. Ne5 {[%clk
0:01:34.7]} 23... N4f6 {[%clk 0:01:14.5]} 24. h4 {[%clk 0:01:06.5]} 24... h5
{[%clk 0:01:08.7]} 25. Bh3 {[%clk 0:01:04.2]} 25... Ra8 {[%clk 0:01:09.6]} 26.
f3 {[%clk 0:00:48.6]} 26... a4 {[%clk 0:01:05.6]} 27. R6c3 {[%clk 0:00:41.7]}
27... Rd6 {[%clk 0:00:59.3]} 28. Kf2 {[%clk 0:00:37]} 28... Ra5 {[%clk
0:00:56.2]} 29. Nc6 {[%clk 0:00:34.1]} 29... Ra8 {[%clk 0:00:49.9]} 30. Ke2
{[%clk 0:00:15.1]} 30... g6 {[%clk 0:00:47.9]} 31. Kd2 {[%clk 0:00:15.6]} 31...
Nd7 {[%clk 0:00:43.3]} 32. Bxd7 {[%clk 0:00:07.9]} 32... Rxd7 {[%clk 0:00:45.2]}
33. Ne5 {[%clk 0:00:08.8]} 33... Rd6 {[%clk 0:00:43]} 34. Rc6 {[%clk 0:00:08.5]}
34... Rxc6 {[%clk 0:00:44.2]} 35. Rxc6 {[%clk 0:00:08.5]} 35... Kf8 {[%clk
0:00:38.6]} 36. Kc3 {[%clk 0:00:07]} 36... a3 {[%clk 0:00:35.8]} 37. b3 {[%clk
0:00:08]} 37... Ke7 {[%clk 0:00:36.9]} 38. Kb4 {[%clk 0:00:08.9]} 38... Ra6
{[%clk 0:00:32.5]} 39. g4 {[%clk 0:00:08.2]} 39... hxg4 {[%clk 0:00:26.6]} 40.
fxg4 {[%clk 0:00:08.9]} 40... Ra8 {[%clk 0:00:27.9]} 41. h5 {[%clk 0:00:09.6]}
41... gxh5 {[%clk 0:00:29.1]} 42. gxh5 {[%clk 0:00:10.7]} 42... f6 {[%clk
0:00:27.8]} 43. Nd3 {[%clk 0:00:07.1]} 43... Kd7 {[%clk 0:00:27.7]} 44. Rc2
{[%clk 0:00:07.9]} 44... Nd6 {[%clk 0:00:25.8]} 45. Nf4 {[%clk 0:00:08.4]} 45...
c6 {[%clk 0:00:26.1]} 46. Rg2 {[%clk 0:00:08.6]} 46... Ne4 {[%clk 0:00:21.9]}
47. Rg7+ {[%clk 0:00:07.4]} 47... Kd6 {[%clk 0:00:22.6]} 48. h6 {[%clk
0:00:08.1]} 48... Rh8 {[%clk 0:00:19.2]} 49. Rg6 {[%clk 0:00:08.6]} 49... c5+
{[%clk 0:00:18.7]} 50. Kxa3 {[%clk 0:00:07.6]} 50... c4 {[%clk 0:00:19.6]} 51.
bxc4 {[%clk 0:00:07.7]} 51... dxc4 {[%clk 0:00:21.5]} 52. Kb2 {[%clk 0:00:08.6]}
52... c3+ {[%clk 0:00:23]} 53. Kc2 {[%clk 0:00:09.5]} 53... Ra8 {[%clk
0:00:24.6]} 54. Kb1 {[%clk 0:00:07.3]} 54... Rc8 {[%clk 0:00:24.6]} 55. h7
{[%clk 0:00:07.1]} 55... Rh8 {[%clk 0:00:16.6]} 56. Rh6 {[%clk 0:00:07.4]} 56...
Ng5 {[%clk 0:00:17.6]} 57. Rxf6+ {[%clk 0:00:08.2]} 57... Ke7 {[%clk 0:00:15.9]}
58. Rf5 {[%clk 0:00:09]} 58... Nxh7 {[%clk 0:00:16.4]} 59. Ng6+ {[%clk 0:00:10]}
59... Ke6 {[%clk 0:00:17]} 60. Re5+ {[%clk 0:00:11.5]} 60... Kd6 {[%clk
0:00:17.5]} 61. Nxh8 {[%clk 0:00:13.4]} 61... Nf6 {[%clk 0:00:19.1]} 62. Kc2
{[%clk 0:00:14.1]} 62... Ng4 {[%clk 0:00:18.3]} 63. Kxc3 {[%clk 0:00:14.7]}
63... Nxe5 {[%clk 0:00:19.5]} 64. dxe5+ {[%clk 0:00:15.4]} 64... Kxe5 {[%clk
0:00:21.2]} 65. Ng6+ {[%clk 0:00:16.6]} 65... Ke4 {[%clk 0:00:22.5]} 66. Kd2
{[%clk 0:00:17.6]} 66... Kd5 {[%clk 0:00:23.6]} 67. Nf4+ {[%clk 0:00:18.1]}
67... Kc4 {[%clk 0:00:24.8]} 68. Ne2 {[%clk 0:00:18.2]} 68... Kb4 {[%clk
0:00:25.9]} 69. Nc3 {[%clk 0:00:19.2]} 69... Ka3 {[%clk 0:00:27.2]} 70. Kd3
{[%clk 0:00:20]} 70... Kb4 {[%clk 0:00:28.7]} 71. Kd4 {[%clk 0:00:20.6]} 71...
b5 {[%clk 0:00:29.3]} 72. e4 {[%clk 0:00:21.4]} 1-0